bitfinex/quotes_ETHUSD_20240916
["timestamp","ask_amount","ask_price","bid_price","bid_amount"]
[1726503702011,0.05,2295.2,2295.0,4.35717]
[1726503702571,0.05,2295.2,2295.1,4.3571]
[1726503704751,0.05,2295.2,2295.1,4.53514366]
[1726503705066,1.98820199,2295.2,2295.1,4.53514366]
[1726503705488,1.9885813,2295.2,2295.1,0.17804366]
[1726503706152,3.63637351,2295.2,2295.1,0.17804366]
[1726503706353,5.4649299,2295.2,2294.8,4.35756]
[1726503706565,5.4649299,2295.2,2294.5,7.46]
[1726503706566,0.9112618,2295.0,2294.5,7.46]
[1726503706740,0.9112618,2295.0,2294.4,4.35839]
[1726503706741,4.35771,2294.8,2294.4,4.35839]
[1726503707070,5.26929015,2294.6,2294.5,0.17238424]
[1726503707381,8.74749289,2294.6,2294.5,0.17238424]
[1726503707542,4.84492797,2294.6,2294.3,4.35858]
[1726503707748,3.81362523,2294.6,2294.5,0.17238424]
[1726503707932,6.21805026,2294.6,2294.5,0.17238424]
[1726503708131,6.21803006,2294.6,2294.2,4.3891696]
[1726503708332,6.21803006,2294.6,2294.3,0.17246939]
[1726503708333,1.99311759,2294.5,2294.3,0.17246939]
[1726503708567,1.94356167,2294.4,2294.3,0.17246939]
[1726503708732,2.2685,2294.3,2294.2,0.0304496]
[1726503708936,9.07562631,2294.3,2294.2,0.20296157]
[1726503709143,7.57587845,2294.3,2294.2,0.20296157]
[1726503709379,11.93456948,2294.3,2294.2,0.20296157]
[1726503709943,7.57594948,2294.3,2294.2,0.0304496]
[1726503710140,11.93456948,2294.3,2294.2,0.0304496]
[1726503710459,7.57594948,2294.3,2294.2,0.0304496]
[1726503710641,5.75329665,2294.3,2294.2,0.0304496]
[1726503710850,5.76170959,2294.3,2294.2,0.20296157]
[1726503711147,5.76170206,2294.3,2294.2,0.20296157]
[1726503711475,5.75297847,2294.3,2294.2,0.20296157]
[1726503711652,4.38606681,2294.3,2294.2,0.20296157]
[1726503711854,5.7613147,2294.3,2294.2,0.20296157]
[1726503712043,5.75293565,2294.3,2294.2,0.20296157]
[1726503712245,5.75293565,2294.3,2294.2,0.15296157]
[1726503712246,5.70293565,2294.3,2294.2,0.15296157]
[1726503712642,5.70293565,2294.3,2293.9,4.35928]
[1726503712845,3.13037368,2294.2,2294.0,0.17194547]
[1726503713173,2.0985926,2294.2,2294.0,0.17194547]
[1726503713551,2.0985926,2294.2,2294.1,4.359]
[1726503713552,0.91103112,2294.2,2294.1,4.359]
[1726503713752,2.2685,2294.3,2294.2,4.35881]
[1726503713966,0.91103112,2294.4,2294.2,4.35881]
[1726503714136,0.91103112,2294.4,2294.2,0.17186029]
[1726503714339,4.94187332,2294.4,2294.3,4.35862]
[1726503714575,3.91103112,2294.4,2294.3,4.53043771]
[1726503714775,4.94199095,2294.4,2294.3,4.53043771]
[1726503715074,1.94199095,2294.4,2294.3,4.53043771]
[1726503715274,1.36686884,2294.5,2294.3,4.53043771]
[1726503715275,0.91103112,2294.5,2294.3,4.53043771]
[1726503715486,0.91103112,2294.4,2294.3,4.53043771]
[1726503715650,1.36686884,2294.5,2294.3,4.53043771]
[1726503715651,0.91103112,2294.5,2294.3,4.53043771]
[1726503715849,0.91103112,2294.4,2294.3,4.53043771]
[1726503716245,1.94203965,2294.4,2294.3,4.53043771]
[1726503716885,0.91103112,2294.4,2294.3,4.53043771]
[1726503717381,0.91103112,2294.5,2294.3,4.53043771]
[1726503717550,1.9418832,2294.4,2294.3,4.53043771]
[1726503717878,1.94191215,2294.4,2294.3,4.53043771]
[1726503718047,1.94208742,2294.4,2294.3,4.53043771]
[1726503718246,1.36686884,2294.6,2294.3,4.53043771]
[1726503718247,0.91103112,2294.5,2294.3,4.53043771]
[1726503718578,1.36686884,2294.6,2294.4,4.35843]
[1726503718783,1.94178139,2294.5,2294.4,4.35843]
[1726503719075,0.91085509,2294.5,2294.4,4.35843]
[1726503719277,1.94178911,2294.5,2294.3,4.35861]
[1726503719445,0.91085509,2294.5,2294.3,4.35861]
[1726503719774,0.91085509,2294.4,2294.3,4.35852]
[1726503719940,0.91085509,2294.5,2294.3,4.35852]
[1726503720137,0.91085509,2294.5,2294.2,4.35881]
[1726503720443,0.91085509,2294.4,2294.2,4.35881]
[1726503720676,0.91085509,2294.4,2294.3,4.35862]
[1726503720854,0.91085509,2294.7,2294.5,8.71648]
[1726503721157,0.91085509,2294.7,2294.5,8.7163]
[1726503721355,0.91085509,2294.7,2294.5,4.35813]
[1726503721576,0.91085509,2294.8,2294.7,8.71572]
[1726503721790,0.91085509,2294.9,2294.8,4.35767]
[1726503721939,1.9419192,2294.9,2294.8,4.35767]
[1726503722139,0.91085509,2295.0,2294.7,4.35786]
[1726503722471,1.94218513,2295.0,2294.9,8.71486]
[1726503722641,1.94218513,2295.0,2294.9,4.35738]
[1726503722979,0.91102382,2295.1,2295.0,4.35729]
[1726503723292,0.91102382,2295.3,2295.2,8.71382]
[1726503723587,1.81423917,2295.3,2295.2,4.35691]
[1726503723883,1.36679065,2295.3,2295.2,4.35691]
[1726503724042,1.94255514,2295.3,2295.2,4.35691]
[1726503724375,1.94255514,2295.3,2295.1,4.35699]
[1726503724580,1.94262037,2295.2,2295.1,4.35699]
[1726503724742,0.91126284,2295.2,2295.1,4.35699]
[1726503725080,1.94262037,2295.2,2295.1,4.35699]
[1726503726695,1.36679065,2295.2,2294.8,4.35749]
[1726503726850,0.91131634,2295.1,2294.8,4.35749]
[1726503727051,0.91131634,2295.0,2294.8,4.35749]
[1726503727360,0.91131634,2295.0,2294.6,11.81793]
[1726503727691,0.91131634,2294.8,2294.4,6.05605]
[1726503727851,0.91131634,2294.8,2294.5,4.35822]
[1726503728046,2.04451213,2294.8,2294.5,4.35822]
[1726503728594,1.94275993,2294.7,2294.4,4.35825]
[1726503728807,0.91131634,2294.6,2294.2,13.51649]
[1726503728987,0.91131634,2294.5,2294.3,4.35857]
[1726503729347,0.91131634,2294.5,2294.4,4.35843]
[1726503729550,0.91131634,2294.6,2294.4,4.35843]
[1726503729785,0.91131634,2294.6,2294.3,4.35861]
[1726503729786,2.0533055,2294.6,2294.3,4.35861]
[1726503730091,0.91131634,2294.6,2294.3,4.35861]
[1726503730587,0.91131634,2294.6,2294.4,4.3584]
[1726503730964,0.91131634,2294.6,2294.4,4.35843]
[1726503731297,0.91131634,2294.7,2294.6,4.35793]
[1726503731592,3.78039065,2294.9,2294.6,4.35793]
[1726503731593,0.91131634,2294.8,2294.6,4.35793]
[1726503731948,1.94271935,2294.8,2294.6,4.35793]
[1726503732147,1.94273032,2294.7,2294.6,4.35793]
[1726503732451,1.94264916,2294.7,2294.6,4.35793]
[1726503732671,1.36679065,2294.8,2294.2,6.0566]
[1726503732672,0.91131634,2294.8,2294.7,4.35786]
[1726503732872,0.91131634,2294.9,2294.8,8.71534]
[1726503733077,2.27810699,2295.1,2294.9,4.35748]
[1726503733303,0.91131634,2295.1,2295.0,4.35729]
[1726503733688,0.91131634,2295.2,2295.0,4.35729]
[1726503734269,4.77427032,2295.1,2294.9,4.35747]
[1726503734467,3.29229529,2295.1,2294.9,4.35747]
[1726503734769,3.74779065,2295.1,2294.9,4.35747]
[1726503734974,1.9378857,2295.0,2294.7,4.35773]
[1726503735194,0.91131134,2295.0,2294.8,4.35766]
[1726503735397,0.91131134,2295.0,2294.8,4.509981]
[1726503735603,0.91131134,2295.0,2294.8,4.35766]
[1726503736116,0.91131134,2295.0,2294.7,4.35773]
[1726503736425,0.91131134,2294.8,2294.7,4.35773]
[1726503737109,1.93802789,2294.8,2294.7,4.35773]
[1726503737667,0.91131134,2294.8,2294.7,4.35773]
[1726503738073,0.91131134,2294.9,2294.7,4.35773]
[1726503738299,0.91131134,2294.8,2294.7,4.35773]
[1726503739102,2.01563452,2294.8,2294.1,9.1578]
[1726503739285,1.93858221,2294.7,2294.4,4.35832]
[1726503739606,5.2956888,2294.7,2294.4,4.35832]
[1726503739822,5.2956888,2294.7,2294.3,4.3586]
[1726503739823,4.26879003,2294.7,2294.3,4.3586]
[1726503739975,0.91168344,2294.4,2294.3,4.35853]
[1726503740170,0.91168344,2294.5,2294.3,4.35853]
[1726503740575,0.91168344,2294.4,2294.3,4.35853]
[1726503740771,0.91168344,2294.5,2294.3,4.35853]
[1726503741017,0.91168344,2294.4,2294.3,4.35853]
[1726503742314,1.93873916,2294.5,2294.4,4.35843]
[1726503742492,0.91168344,2294.5,2294.3,4.35853]
[1726503742812,0.91168344,2294.4,2294.3,4.35853]
[1726503743415,0.91168344,2294.4,2294.1,4.35885]
[1726503743416,0.91168344,2294.4,2294.2,4.35879]
[1726503743624,0.91209746,2294.3,2294.1,4.35885]
[1726503743796,3.16719746,2294.3,2294.1,4.35885]
[1726503745128,3.16719746,2294.3,2294.0,4.35918]
[1726503745333,1.9463612,2294.2,2294.0,4.35918]
[1726503745844,1.9463612,2294.2,2294.0,4.35919]
[1726503747193,1.9463612,2294.2,2294.1,4.359]
[1726503747419,1.36679065,2294.4,2294.2,4.35881]
[1726503747609,0.91183121,2294.3,2294.2,4.35881]
[1726503747934,1.94575866,2294.3,2294.2,4.35881]
[1726503748431,0.91183121,2294.3,2294.2,4.35881]
[1726503749718,1.94575866,2294.3,2294.2,4.51217062]
[1726503749895,0.91183121,2294.3,2294.2,4.51217062]
[1726503750094,0.91183121,2294.3,2294.2,11.45589768]
[1726503750293,0.91183121,2294.5,2294.2,6.20997062]
[1726503750498,0.91183121,2294.6,2294.5,4.35824]
[1726503750741,0.91183121,2294.6,2294.5,5.229907]
[1726503750898,0.91183121,2294.6,2294.5,5.38299956]
[1726503751300,0.91183121,2294.6,2294.5,9.74123956]
[1726503751694,0.91183121,2294.6,2294.5,5.38299956]
[1726503751902,1.36679065,2294.6,2294.5,4.51133256]
[1726503752099,2.39347176,2294.6,2294.5,4.51133256]
[1726503752398,1.36679065,2294.6,2294.5,4.51133256]
[1726503752832,1.81423917,2294.6,2294.5,0.15309256]
[1726503753003,1.81423917,2294.6,2294.5,4.35824]
[1726503753199,1.81423917,2294.6,2294.5,0.15278858]
[1726503754340,5.65086011,2294.6,2294.5,0.15278858]
[1726503754545,8.04676469,2294.6,2294.5,0.15278858]
[1726503754715,8.04676469,2294.6,2294.3,4.35859]
[1726503754908,1.36803124,2294.4,2294.3,4.35859]
[1726503755111,2.39479836,2294.4,2294.3,4.35859]
[1726503755331,1.36803124,2294.4,2294.3,4.35859]
[1726503755497,1.36803124,2294.4,2294.3,8.71721]
[1726503755867,0.9120676,2294.4,2294.3,15.645351]
[1726503756030,0.9120676,2294.5,2294.4,8.71686]
[1726503756236,1.36803124,2294.6,2294.5,4.35824]
[1726503756556,1.82404165,2294.7,2294.6,4.35805]
[1726503756964,4.21980988,2294.7,2294.6,4.35805]
[1726503758322,4.6758203,2294.7,2294.6,4.35805]
[1726503758658,2.28005207,2294.7,2294.6,4.35805]
[1726503758957,3.30680988,2294.7,2294.6,4.35805]
[1726503759580,3.31001127,2294.7,2294.6,4.35805]
[1726503759758,4.67902169,2294.7,2294.6,4.35805]
[1726503760461,2.28226044,2294.7,2294.6,4.35805]
[1726503760643,4.67936328,2294.7,2294.6,4.35805]
[1726503761155,3.31035286,2294.7,2294.6,4.35805]
[1726503761661,2.85316871,2294.7,2294.6,4.35805]
[1726503761839,4.67936328,2294.7,2294.6,4.35805]
[1726503762167,4.67936328,2294.7,2294.6,8.7161]
[1726503762343,4.22203397,2294.7,2294.6,8.7161]
[1726503762542,4.67936328,2294.7,2294.6,8.7161]
[1726503762719,2.2824959,2294.8,2294.7,8.71572]
[1726503762927,4.22259903,2294.8,2294.7,8.71572]
[1726503764443,4.22259903,2294.8,2294.7,4.51030617]
[1726503764644,5.33033425,2294.8,2294.7,0.15244617]
[1726503765539,5.33033425,2294.8,2294.5,4.35809]
[1726503765858,1.36901669,2294.6,2294.5,4.35809]
[1726503766172,2.39644334,2294.6,2294.5,4.35809]
[1726503768246,1.36901669,2294.6,2294.5,4.35809]
[1726503768957,2.39650771,2294.6,2294.5,4.35809]
[1726503769538,2.39650771,2294.6,2294.5,8.71633]
[1726503769744,1.94038097,2294.6,2294.5,8.71633]
[1726503770593,1.02749102,2294.6,2294.5,10.41413]
[1726503771207,1.36901669,2294.6,2294.5,10.41413]
[1726503771700,2.39650771,2294.6,2294.5,10.41413]
[1726503772401,1.36901669,2294.6,2294.5,11.54188289]
[1726503773408,2.39788213,2294.6,2294.5,10.41413]
[1726503773708,1.37039111,2294.6,2294.5,10.41413]
[1726503773914,2.39884171,2294.6,2294.5,10.41413]
[1726503775366,2.85391143,2294.6,2294.5,10.41413]
[1726503775563,2.39857754,2294.6,2294.5,10.41413]
[1726503776910,1.02855584,2294.6,2294.5,10.41413]
[1726503777221,1.37002818,2294.6,2294.5,11.891402]
[1726503777411,2.39858402,2294.6,2294.5,11.891402]
[1726503778485,1.37002818,2294.6,2294.5,11.891402]
[1726503778667,2.39826922,2294.6,2294.5,11.891402]
[1726503779612,2.39826922,2294.6,2294.5,12.04361379]
[1726503780302,2.39964784,2294.6,2294.5,12.04361379]
[1726503780513,2.39879599,2294.6,2294.5,10.56634179]
[1726503781069,2.39899331,2294.6,2294.5,8.86854179]
[1726503781265,2.39928046,2294.6,2294.5,8.86854179]
[1726503781498,1.02824104,2294.6,2294.5,8.86854179]
[1726503781704,2.85359663,2294.6,2294.5,8.86854179]
[1726503782004,4.22709012,2294.6,2294.5,8.86854179]
[1726503782743,4.23014809,2294.6,2294.5,8.86854179]
[1726503783721,2.40047274,2294.6,2294.5,8.86854179]
[1726503784055,2.40032882,2294.6,2294.5,8.86854179]
[1726503784252,2.85778629,2294.6,2294.5,4.51030179]
[1726503784460,4.22972471,2294.6,2294.5,4.51030179]
[1726503784752,4.22972471,2294.6,2294.5,8.86854179]
[1726503784928,2.40131115,2294.6,2294.5,8.86854179]
[1726503785111,2.4001509,2294.6,2294.5,15.81143597]
[1726503785314,1.94324847,2294.6,2294.5,16.36143597]
[1726503785525,0.91387574,2294.7,2294.6,8.7161]
[1726503785743,2.41188711,2294.8,2294.7,4.35786]
[1726503785949,2.41188719,2294.8,2294.7,10.07961196]
[1726503786174,2.41188719,2294.8,2294.7,10.23169966]
[1726503786542,2.41179591,2294.8,2294.7,10.23169966]
[1726503786875,2.8694313,2294.8,2294.7,8.8678077]
[1726503787038,4.26033201,2294.8,2294.7,8.8678077]
[1726503787238,6.57493201,2294.8,2294.7,4.5099477]
[1726503787635,4.72635272,2294.8,2294.7,4.5099477]
[1726503787830,2.41175272,2294.8,2294.7,4.5099477]
[1726503788131,2.2704,2294.7,2294.3,4.35861]
[1726503788342,1.37054837,2294.4,2294.2,4.35872]
[1726503788643,2.41156611,2294.3,2294.2,4.35872]
[1726503789551,4.68196611,2294.3,2294.2,4.35872]
[1726503790581,2.41156611,2294.3,2294.2,4.35872]
[1726503791055,2.40137137,2294.3,2294.2,4.35872]
[1726503791449,2.40137137,2294.3,2294.1,4.359]
[1726503791450,2.2704,2294.2,2294.1,4.35882]
[1726503791675,2.2704,2294.2,2293.9,4.35926]
[1726503791676,4.672178,2294.2,2293.9,4.35926]
[1726503791841,1.94481039,2294.1,2294.0,4.35919]
[1726503792042,3.14313432,2294.1,2293.7,4.35961]
[1726503792243,0.91404523,2293.8,2293.7,4.35961]
[1726503792438,1.94486823,2293.8,2293.7,4.35961]
[1726503792871,1.94486823,2293.8,2293.7,8.71937]
[1726503793284,1.94486823,2293.8,2293.7,11.29291848]
[1726503793444,0.91404523,2294.0,2293.7,2.57354848]
[1726503793645,0.91404523,2294.0,2293.9,8.71876]
[1726503793844,1.94457235,2294.0,2293.9,8.71876]
[1726503794682,1.94457235,2294.0,2293.9,8.8714611]
[1726503795556,1.37106785,2294.0,2293.9,8.8714611]
[1726503795756,2.40159497,2294.0,2293.9,8.8714611]
[1726503797089,2.40159497,2294.0,2293.9,4.5120811]
[1726503798374,1.94370312,2294.0,2293.9,4.5120811]
[1726503799198,1.94370312,2294.0,2293.9,8.8714611]
[1726503799403,1.94370312,2294.0,2293.9,4.5120811]
[1726503799589,1.94370312,2294.0,2293.9,9.75864321]
[1726503799893,1.37106785,2294.1,2294.0,4.35919]
[1726503800053,1.37106785,2294.1,2294.0,0.15314954]
[1726503800258,5.19288513,2294.1,2294.0,0.15314954]
[1726503800452,5.19288513,2294.1,2293.8,4.35947]
[1726503800453,6.56598079,2294.1,2293.8,4.35947]
[1726503800659,1.3694524,2293.9,2293.8,4.35947]
[1726503800888,2.39919911,2293.9,2293.8,4.35947]
[1726503801305,2.39919911,2293.9,2293.7,4.35962]
[1726503801473,1.94257399,2293.8,2293.7,4.35962]
[1726503802092,0.91282728,2293.9,2293.8,4.35957]
[1726503802510,0.91282728,2293.9,2293.8,8.71914]
[1726503802708,3.7050524,2294.1,2293.9,4.35938]
[1726503802867,1.94241815,2294.0,2293.9,4.35938]
[1726503803204,1.02957871,2294.0,2293.9,4.35938]
[1726503803415,1.94236136,2294.0,2293.9,4.35938]
[1726503803702,1.94236136,2294.0,2293.9,8.71876]
[1726503803901,1.94236136,2294.0,2293.9,9.760416]
[1726503804206,1.94236136,2294.0,2293.9,8.71876]
[1726503804985,1.94211563,2294.0,2293.9,8.71876]
[1726503805193,4.20571563,2294.0,2293.9,4.35938]
[1726503805486,4.20543724,2294.0,2293.9,4.35938]
[1726503805709,4.66238538,2294.0,2293.8,8.71904]
[1726503805911,1.94184849,2293.9,2293.8,8.71904]
[1726503806335,1.94163117,2293.9,2293.8,8.71904]
[1726503806621,1.94160624,2293.9,2293.8,8.71904]
[1726503806924,1.94160477,2293.9,2293.8,4.35949]
[1726503808138,0.91251551,2294.0,2293.8,4.35957]
[1726503808302,0.91251551,2293.9,2293.8,4.35957]
[1726503808506,0.91251551,2294.0,2293.8,4.35957]
[1726503809052,1.94134072,2293.9,2293.8,4.35957]
[1726503809207,0.91251551,2294.0,2293.8,4.35957]
[1726503810126,0.91251551,2294.0,2293.9,0.15346498]
[1726503810306,1.94123333,2294.0,2293.9,0.15346498]
[1726503810640,2.3033,2293.9,2293.7,4.35967]
[1726503810842,3.21535435,2293.9,2293.7,4.35967]
[1726503811545,0.91205435,2293.9,2293.8,4.35956]
[1726503811747,1.94065592,2293.9,2293.8,4.35956]
[1726503812255,1.3694524,2294.0,2293.8,4.35956]
[1726503812256,0.91205435,2294.0,2293.9,4.35938]
[1726503812484,1.94067639,2294.0,2293.9,4.35938]
[1726503812688,1.94067639,2294.0,2293.9,8.71876]
[1726503813057,1.3694524,2294.1,2293.9,8.71876]
[1726503813058,0.91205435,2294.1,2293.9,8.71876]
[1726503813261,1.94034412,2294.0,2293.9,4.35938]
[1726503814197,1.94029514,2294.0,2293.9,4.35938]
[1726503814572,1.94047528,2294.0,2293.9,4.35938]
[1726503816160,0.91205435,2294.0,2293.9,4.35938]
[1726503816365,1.94047566,2294.0,2293.9,4.35938]
[1726503817184,1.3694524,2294.2,2294.1,4.359]
[1726503817386,2.39797039,2294.2,2294.1,4.359]
[1726503818896,2.39797039,2294.2,2294.1,8.718]
[1726503819111,0.9119394,2294.3,2294.2,4.35881]
[1726503819397,0.9119394,2294.4,2294.3,4.35862]
[1726503819803,0.9119394,2294.5,2294.4,8.71686]
[1726503820101,8.7694524,2294.6,2294.5,4.35824]
[1726503820102,0.9119394,2294.6,2294.5,4.35824]
[1726503820398,0.9119394,2294.9,2294.7,4.35786]
[1726503820612,1.02897919,2294.8,2294.7,8.71572]
[1726503820760,1.3694524,2294.9,2294.7,8.71572]
[1726503820761,1.36851204,2294.9,2294.8,4.35767]
[1726503820965,2.3900656,2294.9,2294.8,4.35767]
[1726503821165,1.9338036,2294.9,2294.8,10.41314]
[1726503821565,1.93378601,2294.9,2294.8,10.41314]
[1726503821891,0.91225004,2295.0,2294.9,4.35748]
[1726503822201,1.93380606,2295.0,2294.9,8.71496]
[1726503822386,1.93380606,2295.0,2294.9,9.756236]
[1726503822792,0.91225004,2295.0,2294.9,9.756236]
[1726503823293,1.36851204,2295.1,2295.0,4.35729]
[1726503823689,0.91210424,2295.1,2295.0,4.35729]
[1726503823894,1.93336862,2295.1,2295.0,4.35729]
[1726503824505,2.38977642,2295.1,2294.9,4.35748]
[1726503824808,1.93306348,2295.0,2294.9,4.35748]
[1726503825968,0.9117991,2295.1,2294.9,4.35748]
[1726503826504,4.82595755,2295.0,2294.8,4.35757]
[1726503826801,1.9323043,2294.9,2294.6,4.35804]
[1726503827109,0.91155879,2294.7,2294.6,4.35804]
[1726503827471,1.36851204,2294.8,2294.6,4.35804]
[1726503827472,0.91155879,2294.8,2294.7,4.35786]
[1726503827712,1.93213687,2294.8,2294.7,8.71572]
[1726503827866,0.91155879,2294.9,2294.8,4.35767]
[1726503828069,1.93217174,2294.9,2294.8,4.35767]
[1726503829481,1.93208699,2294.9,2294.8,4.35767]
[1726503829682,1.93208699,2294.9,2294.7,4.35786]
[1726503829870,0.91155879,2294.9,2294.7,4.35786]
[1726503830881,0.91155879,2294.9,2294.7,4.35778]
[1726503831292,0.91155879,2294.9,2294.7,4.35777]
[1726503831896,0.91155879,2294.9,2294.6,4.35804]
[1726503831897,0.91155879,2294.8,2294.6,4.35804]
[1726503832219,2.2527,2294.6,2294.4,4.35841]
[1726503832514,2.2527,2294.6,2294.5,4.35817]
[1726503832515,3.16425879,2294.6,2294.5,4.35817]
[1726503832719,4.18480882,2294.6,2294.5,4.35817]
[1726503833381,4.18489775,2294.6,2294.5,4.35824]
[1726503836932,0.91155879,2294.7,2294.5,4.35824]
[1726503837080,1.93167174,2294.7,2294.5,8.71648]
[1726503837280,1.93167174,2294.7,2294.5,8.7164]
[1726503837707,0.91155879,2294.8,2294.6,4.35805]
[1726503838909,0.91155879,2294.8,2294.7,4.35786]
[1726503839141,0.91155879,2294.9,2294.7,4.35786]
[1726503839351,1.93155118,2294.9,2294.7,4.35786]
[1726503839725,1.93155118,2294.9,2294.8,0.15168616]
[1726503839926,1.93155118,2294.9,2294.7,4.35786]
[1726503840135,1.93155118,2294.9,2294.8,0.15168616]
[1726503840340,2.38850443,2294.9,2294.7,4.35786]
[1726503840547,1.93152622,2294.8,2294.7,4.35786]
[1726503841653,1.93143786,2294.8,2294.7,4.35786]
[1726503842712,1.93123949,2294.8,2294.7,4.35786]
[1726503842911,1.36851204,2295.0,2294.8,8.71534]
[1726503842912,0.91153383,2294.9,2294.8,8.71534]
[1726503843127,0.91153383,2295.0,2294.9,8.71496]
[1726503843356,0.91153383,2295.1,2295.0,4.35729]
[1726503843558,0.91153383,2295.2,2295.1,4.3571]
[1726503843719,1.93127876,2295.2,2295.1,4.3571]
[1726503846360,1.93128518,2295.2,2295.0,4.35719]
[1726503846557,0.91153383,2295.2,2295.1,4.3571]
[1726503847054,1.93122523,2295.2,2295.1,4.3571]
[1726503847613,1.93122523,2295.2,2295.0,4.35719]
[1726503847856,0.91153383,2295.2,2295.0,4.35719]
[1726503849143,0.91153383,2295.2,2295.0,8.71439]
[1726503849446,0.91153383,2295.2,2295.0,4.35719]
[1726503849657,0.91153383,2295.2,2295.0,8.71436]
[1726503849818,0.91153383,2295.2,2295.0,8.71437]
[1726503850731,0.91153383,2295.2,2295.0,4.35717]
[1726503850961,0.91153383,2295.2,2295.1,4.3571]
[1726503851112,0.91153383,2295.2,2295.1,6.0549]
[1726503851317,1.93093654,2295.2,2295.1,10.412]
[1726503852224,1.93093654,2295.2,2295.1,4.3571]
[1726503854788,3.37300271,2295.2,2295.1,4.50836244]
[1726503855274,4.74151475,2295.2,2295.1,4.50836244]
[1726503855655,4.74203611,2295.2,2295.1,0.15126244]
[1726503855848,4.74203611,2295.2,2295.1,4.50836244]
[1726503856052,2.38843611,2295.2,2295.1,4.50836244]
[1726503856330,1.93131635,2295.2,2295.1,5.39491768]
[1726503856536,1.93130991,2295.2,2295.1,5.39491768]
[1726503856764,1.93130991,2295.2,2295.1,8.86546244]
[1726503858177,2.38842967,2295.2,2295.1,8.86546244]
[1726503860583,2.3893165,2295.2,2295.1,8.86546244]
[1726503861037,2.3893165,2295.2,2295.1,4.50836244]
[1726503861249,2.38223846,2295.2,2295.1,4.50836244]
[1726503861686,4.20963629,2295.2,2295.1,4.50836244]
[1726503861992,2.38223846,2295.2,2295.1,4.50836244]
[1726503862289,1.82739783,2295.2,2295.1,4.50836244]
[1726503862499,6.55943591,2295.2,2295.1,0.15126244]
[1726503863271,7.01344989,2295.2,2295.1,0.15126244]
[1726503863997,12.7811283,2295.2,2295.1,0.15126244]
[1726503864185,14.94109428,2295.2,2294.8,4.35757]
[1726503864389,1.82706631,2294.9,2294.8,4.35757]
[1726503864698,2.84817039,2294.9,2294.8,4.35757]
[1726503864909,4.20960439,2294.9,2294.8,4.35757]
[1726503865203,1.82706631,2294.9,2294.8,4.35757]
[1726503865406,2.84916872,2294.9,2294.8,4.35757]
[1726503865559,4.21060272,2294.9,2294.8,4.35757]
[1726503866002,2.38498106,2294.9,2294.8,4.35757]
[1726503866162,2.39235855,2294.9,2294.8,4.35757]
[1726503866364,2.39235855,2294.9,2294.8,5.229101]
[1726503867407,2.39235855,2294.9,2294.8,4.35757]
[1726503869302,2.39235855,2294.9,2294.8,8.71524]
[1726503869468,1.93562849,2294.9,2294.8,8.71524]
[1726503869667,1.93562849,2294.9,2294.8,10.41304]
[1726503869893,1.93562849,2294.9,2294.8,10.56421196]
[1726503870105,1.93562849,2294.9,2294.8,12.44860788]
[1726503870306,1.93573249,2294.9,2294.8,12.44860788]
[1726503871010,0.91352608,2295.2,2295.0,1.6978]
[1726503871212,0.91352608,2295.2,2295.1,19.24098724]
[1726503871391,2.28387606,2295.6,2295.4,13.06959]
[1726503871392,0.91352608,2295.5,2295.4,13.06959]
[1726503871602,0.91352608,2295.6,2295.5,8.71268]
[1726503871908,0.91352608,2295.6,2295.5,11.060687]
[1726503872111,0.91352608,2295.6,2295.5,11.21142871]
[1726503874072,0.91352608,2295.7,2295.6,8.7123]
[1726503874269,0.91352608,2295.7,2295.6,10.43883687]
[1726503874483,0.91352608,2295.7,2295.6,10.58953604]
[1726503874702,1.37025614,2295.8,2295.7,4.35596]
[1726503875012,1.37025614,2295.8,2295.7,8.86208608]
[1726503875420,0.91256058,2296.0,2295.7,10.12581332]
[1726503875587,0.91256058,2296.2,2296.1,6.05301]
[1726503875784,1.40837094,2296.3,2296.2,8.71004]
[1726503875785,0.95067538,2296.3,2296.2,8.71004]
[1726503875990,0.95067538,2296.3,2296.2,10.50580336]
[1726503876344,0.95067538,2296.3,2296.2,14.86082336]
[1726503876345,0.0381148,2296.3,2296.2,14.86082336]
[1726503877432,0.0381148,2296.3,2296.2,9.95580336]
[1726503877648,0.0381148,2296.3,2296.2,8.85996236]
[1726503877851,0.0381148,2296.3,2296.2,4.50494236]
[1726503878055,3.25377538,2296.3,2296.2,0.14992236]
[1726503878443,3.25377538,2296.3,2296.1,4.35518]
[1726503878738,3.25377538,2296.3,2296.2,0.14808541]
[1726503878909,3.25377538,2296.3,2296.0,8.71055]
[1726503879110,3.25377538,2296.3,2296.0,4.35527]
[1726503879351,3.25377538,2296.3,2296.1,0.14812792]
[1726503880440,2.3412148,2296.3,2296.1,0.14812792]
[1726503880643,3.25377538,2296.3,2296.1,0.14812792]
[1726503881123,2.3412148,2296.3,2296.1,0.14812792]
[1726503881323,3.25377538,2296.3,2296.1,0.14812792]
[1726503882409,2.3412148,2296.3,2296.1,0.14812792]
[1726503883317,3.25377538,2296.3,2296.1,0.14812792]
[1726503883519,2.3412148,2296.3,2296.1,0.14812792]
[1726503885429,0.0381148,2296.3,2296.1,4.50329792]
[1726503886014,0.0381148,2296.3,2296.1,5.38915271]
[1726503886219,0.0381148,2296.3,2296.2,4.35502]
[1726503886631,0.0381148,2296.3,2296.2,4.50077208]
[1726503888616,0.0381148,2296.3,2296.2,8.85579208]
[1726503888823,0.0381148,2296.3,2296.2,15.45861208]
[1726503889061,0.0381148,2296.3,2296.2,17.09305877]
[1726503894163,0.0381148,2296.3,2296.2,12.18803877]
[1726503895428,0.0381148,2296.3,2296.2,17.09305877]
[1726503895631,0.0381148,2296.3,2296.2,20.09305877]
[1726503900438,0.0381148,2296.3,2296.2,12.18803877]
[1726503900688,0.0381148,2296.3,2296.2,10.49023877]
[1726503901026,0.0381148,2296.3,2296.2,8.85579208]
[1726503902348,0.0381148,2296.3,2296.2,10.55359208]
[1726503903140,0.0381148,2296.3,2296.2,15.45861208]
[1726503903868,0.0381148,2296.3,2296.2,18.45861208]
[1726503904526,0.0381148,2296.3,2296.2,8.85579208]
[1726503904733,0.0381148,2296.3,2296.2,10.34668029]
[1726503905868,0.0381148,2296.3,2296.2,15.25170029]
[1726503906468,0.0381148,2296.3,2296.2,16.94950029]
[1726503906841,0.0381148,2296.3,2296.2,24.30452029]
[1726503908870,0.0381148,2296.3,2296.2,19.94950029]
[1726503909048,0.0381148,2296.3,2296.2,20.38550029]
[1726503909778,0.0381148,2296.3,2296.2,13.78268029]
[1726503911349,0.0381148,2296.3,2296.2,13.68677203]
[1726503914270,0.0381148,2296.3,2296.2,18.04179203]
[1726503914470,0.0381148,2296.3,2296.2,13.68677203]